fUST/lending_fUST_20250604
["ID","MTS","AMOUNT","RATE_DAILY","PERIOD"]
[364254814,1749049854888,-3000.0,0.0002029,2]
[364254816,1749049854900,-1500.0,0.00020292,2]
[364254818,1749049854910,-500.0,0.00020292,2]
[364254820,1749049854920,-3000.0,0.000203,2]
[364254822,1749049854930,-3000.0,0.0002031,2]
[364254823,1749049854940,-3600.0,0.00020312,2]
[364254824,1749049854951,-3000.0,0.0002032,2]
[364254825,1749049854960,-3000.0,0.0002033,2]
[364254826,1749049854970,-3000.0,0.0002034,2]
[364254827,1749049854980,-4284.460687,0.0002035,2]
[364254828,1749049854990,-776.5384543,0.00020486,3]
[364254829,1749049855000,-460.96,0.00020547,2]
[364254831,1749049855010,-728.53,0.00020547,2]
[364254833,1749049855019,-440.0,0.00020547,2]
[364254835,1749049855029,-271.8,0.00020547,2]
[364254837,1749049855039,-1817.93,0.00020547,2]
[364254839,1749049855048,-954.0,0.00020547,2]
[364254841,1749049855058,-1292.98,0.00020547,2]
[364254843,1749049855067,-440.0,0.00020547,2]
[364254845,1749049855077,-1731.79,0.00020547,2]
[364254847,1749049855086,-440.0,0.00020547,2]
[364254849,1749049855096,-440.0,0.00020547,2]
[364254851,1749049855105,-2281.41,0.00020547,2]
[364254853,1749049855114,-440.0,0.00020547,2]
[364254855,1749049855124,-440.0,0.00020547,2]
[364254857,1749049855134,-440.0,0.00020547,2]
[364254859,1749049855143,-732.21,0.00020547,2]
[364254861,1749049855153,-783.41,0.00020547,2]
[364254863,1749049855162,-440.0,0.00020547,2]
[364254865,1749049855171,-440.0,0.00020547,2]
[364254867,1749049855181,-1018.43,0.00020547,2]
[364254869,1749049855191,-954.88,0.00020547,2]
[364254871,1749049855200,-440.0,0.00020547,2]
[364254874,1749049855210,-588.98,0.00020547,2]
[364254876,1749049855219,-440.0,0.00020547,2]
[364254878,1749049855228,-440.0,0.00020547,2]
[364254879,1749049855237,-1028.62,0.00020547,2]
[364254881,1749049855247,-973.96,0.00020547,2]
[364254883,1749049855256,-440.0,0.00020547,2]
[364254886,1749049855266,-641.5,0.00020547,2]
[364254888,1749049855276,-1725.1,0.00020547,2]
[364254890,1749049855287,-442.95621617,0.00020547,2]
[364254892,1749049855296,-440.0,0.00020547,2]
[364254894,1749049855306,-440.0,0.00020547,2]
[364254896,1749049855316,-494.08,0.00020547,2]
[364254898,1749049855325,-1850.19,0.000206,2]
[364254900,1749049855335,-52694.72,0.000206,2]
[364254902,1749049855344,-2000.0,0.00020726,2]
[364254904,1749049855354,-2000.0,0.00020726,2]
[364254906,1749049855364,-333.35188082,0.00020735,2]
[364254908,1749049855374,-776.5384543,0.00020762,3]
[364254910,1749049855383,-460.96,0.00020821,2]
[364254912,1749049855393,-728.53,0.00020821,2]
[364254914,1749049855402,-440.0,0.00020821,2]
[364254916,1749049855412,-1817.93,0.00020821,2]
[364254918,1749049855422,-954.0,0.00020821,2]
[364254920,1749049855432,-1292.98,0.00020821,2]
[364254922,1749049855442,-440.0,0.00020821,2]
[364254924,1749049855453,-1731.79,0.00020821,2]
[364254926,1749049855463,-270.0,0.00020821,2]
[364254928,1749049855473,-270.0,0.00020821,2]
[364254930,1749049855483,-2281.41,0.00020821,2]
[364254940,1749049855577,-270.0,0.00020821,2]
[364254942,1749049855588,-440.0,0.00020821,2]
[364254945,1749049855598,-440.0,0.00020821,2]
[364254947,1749049855608,-732.21,0.00020821,2]
[364254949,1749049855618,-783.41,0.00020821,2]
[364254951,1749049855628,-440.0,0.00020821,2]
[364254953,1749049855638,-440.0,0.00020821,2]
[364254955,1749049855647,-1018.43,0.00020821,2]
[364254957,1749049855658,-954.88,0.00020821,2]
[364254958,1749049855666,-440.0,0.00020821,2]
[364254960,1749049855676,-588.98,0.00020821,2]
[364254963,1749049855686,-440.0,0.00020821,2]
[364254964,1749049855696,-270.0,0.00020821,2]
[364254967,1749049855706,-1028.62,0.00020821,2]
[364254969,1749049855716,-973.96,0.00020821,2]
[364254970,1749049855725,-382.57,0.00020821,2]
[364254973,1749049855735,-641.5,0.00020821,2]
[364254975,1749049855745,-1725.1,0.00020821,2]
[364254977,1749049855754,-440.0,0.00020821,2]
[364254979,1749049855764,-440.0,0.00020821,2]
[364254981,1749049855775,-494.08,0.00020821,2]
[364254983,1749049855787,-252.70472485,0.00020839,2]
[364254985,1749049855796,-250.0,0.00020938,2]
[364254987,1749049855806,-500.0,0.00021006,2]
[364254989,1749049855815,-776.5384543,0.00021038,4]
[364254991,1749049855825,-460.96,0.00021095,2]
[364254993,1749049855834,-728.53,0.00021095,2]
[364254995,1749049855844,-440.0,0.00021095,2]
[364254997,1749049855854,-1817.93,0.00021095,2]
[364254999,1749049855864,-954.0,0.00021095,2]
[364255000,1749049855874,-1292.98,0.00021095,2]
[364255002,1749049855884,-440.0,0.00021095,2]
[364255004,1749049855893,-1731.79,0.00021095,2]
[364255006,1749049855903,-2281.41,0.00021095,2]
[364255008,1749049855912,-440.0,0.00021095,2]
[364255010,1749049855922,-440.0,0.00021095,2]
[364255012,1749049855931,-732.21,0.00021095,2]
[364255014,1749049855941,-783.41,0.00021095,2]
[364255016,1749049855951,-440.0,0.00021095,2]
[364255018,1749049855960,-440.0,0.00021095,2]
[364255020,1749049855970,-1018.43,0.00021095,2]
[364255022,1749049855980,-954.88,0.00021095,2]
[364255024,1749049855989,-440.0,0.00021095,2]
[364255026,1749049855998,-588.98,0.00021095,2]
[364255027,1749049856007,-440.0,0.00021095,2]
[364255028,1749049856017,-1028.62,0.00021095,2]
[364255029,1749049856026,-973.96,0.00021095,2]
[364255031,1749049856035,-641.5,0.00021095,2]
[364255033,1749049856044,-1725.1,0.00021095,2]
[364255035,1749049856054,-440.0,0.00021095,2]
[364255037,1749049856063,-545.45419088,0.00021095,2]
[364255039,1749049856072,-494.08,0.00021095,2]
[364255041,1749049856082,-1500.0,0.00021164,2]
[364255043,1749049856092,-2500.0,0.00021274,2]
[364255045,1749049856102,-508.37283452,0.00021274,2]
[364255047,1749049856111,-585.07,0.000213,2]
[364255049,1749049856121,-776.5384543,0.00021314,5]
[364255051,1749049856130,-460.96,0.00021369,2]
[364255053,1749049856140,-728.53,0.00021369,2]
[364255055,1749049856149,-440.0,0.00021369,2]
[364255057,1749049856159,-1817.93,0.00021369,2]
[364255058,1749049856168,-954.0,0.00021369,2]
[364255059,1749049856177,-1292.98,0.00021369,2]
[364255060,1749049856187,-440.0,0.00021369,2]
[364255061,1749049856197,-1731.79,0.00021369,2]
[364255062,1749049856207,-2281.41,0.00021369,2]
[364255063,1749049856216,-440.0,0.00021369,2]
[364255065,1749049856226,-250.0,0.00021369,2]
[364255066,1749049856235,-732.21,0.00021369,2]
[364255069,1749049856245,-783.41,0.00021369,2]
[364255070,1749049856255,-440.0,0.00021369,2]
[364255073,1749049856264,-440.0,0.00021369,2]
[364255075,1749049856274,-1018.43,0.00021369,2]
[364255076,1749049856285,-954.88,0.00021369,2]
[364255077,1749049856295,-440.0,0.00021369,2]
[364255078,1749049856304,-588.98,0.00021369,2]
[364255079,1749049856314,-440.0,0.00021369,2]
[364255080,1749049856325,-1028.62,0.00021369,2]
[364255082,1749049856335,-973.96,0.00021369,2]
[364255085,1749049856345,-641.5,0.00021369,2]
[364255087,1749049856355,-1725.1,0.00021369,2]
[364255088,1749049856364,-440.0,0.00021369,2]
[364255090,1749049856373,-494.08,0.00021369,2]
[364255093,1749049856383,-823.0,0.00021441,2]
[364255094,1749049856393,-300.0,0.00021454,2]
[364255097,1749049856402,-157.20561442,0.00021517,2]
[364255098,1749049856411,-1000.0,0.00021554,2]
[364255100,1749049856421,-776.5384543,0.0002159,5]
[364255102,1749049856430,-460.96,0.00021643,2]
[364255104,1749049856439,-728.53,0.00021643,2]
[364255106,1749049856449,-582.08,0.00021643,2]
[364255108,1749049856458,-1817.93,0.00021643,2]
[364255110,1749049856467,-954.0,0.00021643,2]
[364255112,1749049856477,-1292.98,0.00021643,2]
[364255114,1749049856490,-440.0,0.00021643,2]
[364255116,1749049856499,-1731.79,0.00021643,2]
[364255118,1749049856509,-2281.41,0.00021643,2]
[364255120,1749049856519,-440.0,0.00021643,2]
[364255121,1749049856529,-732.21,0.00021643,2]
[364255123,1749049856540,-783.41,0.00021643,2]
[364255125,1749049856550,-440.0,0.00021643,2]
[364255128,1749049856561,-567.12954051,0.00021643,2]
[364255130,1749049856571,-1018.43,0.00021643,2]
[364255131,1749049856580,-954.88,0.00021643,2]
[364255134,1749049856590,-440.0,0.00021643,2]
[364255135,1749049856599,-588.98,0.00021643,2]
[364255138,1749049856608,-440.0,0.00021643,2]
[364255140,1749049856618,-1028.62,0.00021643,2]
[364255141,1749049856628,-973.96,0.00021643,2]
[364255143,1749049856637,-641.5,0.00021643,2]
[364255146,1749049856648,-1725.1,0.00021643,2]
[364255147,1749049856657,-397.83798343,0.00021643,2]
[364255149,1749049856667,-494.08,0.00021643,2]
[364255151,1749049856676,-151.0,0.00021782,2]
[364255153,1749049856686,-151.0,0.00021782,2]
[364255155,1749049856695,-500.0,0.00021782,2]
[364255157,1749049856705,-151.0,0.00021782,2]
[364255159,1749049856714,-500.0,0.00021782,2]
[364255161,1749049856724,-205.16095159,0.00021782,2]
[364255163,1749049856733,-151.0,0.00021782,2]
[364255165,1749049856743,-151.0,0.00021782,2]
[364255166,1749049856752,-198.0,0.00021782,2]
[364255167,1749049856762,-232.97706971,0.00021782,2]
[364255168,1749049856771,-151.0,0.00021782,2]
[364255169,1749049856781,-151.0,0.00021782,2]
[364255170,1749049856791,-198.0,0.00021782,2]
[364255171,1749049856800,-151.81095745,0.00021782,2]
[364255172,1749049856809,-151.0,0.00021809,2]
[364255173,1749049856819,-151.0,0.00021809,2]
[364255174,1749049856829,-500.0,0.00021809,2]
[364255175,1749049856839,-500.0,0.00021809,2]
[364255176,1749049856848,-151.0,0.00021809,2]
[364255177,1749049856858,-151.0,0.00021809,2]
[364255178,1749049856867,-205.80618261,0.00021809,2]
[364255179,1749049856877,-151.0,0.00021837,2]
[364255180,1749049856886,-500.0,0.00021837,2]
[364255181,1749049856897,-500.0,0.00021837,2]
[364255182,1749049856907,-151.0,0.00021837,2]
[364255183,1749049856917,-151.0,0.00021864,2]
[364255184,1749049856926,-776.5384543,0.00021866,6]
[364255185,1749049856935,-151.0,0.00021892,2]
[364255186,1749049856945,-500.0,0.00021917,2]
[364255187,1749049856954,-460.96,0.00021917,2]
[364255188,1749049856963,-728.53,0.00021917,2]
[364255189,1749049856973,-1817.93,0.00021917,2]
[364255190,1749049856982,-954.0,0.00021917,2]
[364255191,1749049856992,-1292.98,0.00021917,2]
[364255192,1749049857002,-440.0,0.00021917,2]
[364255193,1749049857012,-1731.79,0.00021917,2]
[364255194,1749049857021,-2281.41,0.00021917,2]
[364255195,1749049857031,-440.0,0.00021917,2]
[364255196,1749049857041,-732.21,0.00021917,2]
[364255197,1749049857051,-783.41,0.00021917,2]
[364255198,1749049857060,-440.0,0.00021917,2]
[364255199,1749049857070,-1018.43,0.00021917,2]
[364255200,1749049857080,-954.88,0.00021917,2]
[364255201,1749049857090,-230.0,0.00021917,2]
[364255202,1749049857179,-588.98,0.00021917,2]
[364255203,1749049857189,-230.0,0.00021917,2]
[364255204,1749049857199,-1028.62,0.00021917,2]
[364255205,1749049857208,-973.96,0.00021917,2]
[364255206,1749049857217,-641.5,0.00021917,2]
[364255207,1749049857227,-1725.1,0.00021917,2]
[364255208,1749049857237,-494.08,0.00021917,2]
[364255209,1749049857247,-245.0,0.00021919,2]
[364255210,1749049857256,-3000.0,0.00022,2]
[364255211,1749049857266,-1850.19,0.00022,7]
[364255212,1749049857276,-1000.0,0.00022,22]
[364255213,1749049857286,-3000.0,0.0002201,2]
[364255214,1749049857297,-3000.0,0.0002202,2]
[364255215,1749049857306,-3000.0,0.0002203,2]
[364255216,1749049857316,-3000.0,0.0002204,2]
[364255217,1749049857326,-3000.0,0.0002205,2]
[364255218,1749049857336,-3000.0,0.0002206,2]
[364255219,1749049857346,-3000.0,0.0002207,2]
[364255220,1749049857356,-3000.0,0.0002208,2]
[364255221,1749049857365,-3000.0,0.0002209,2]
[364255222,1749049857375,-3000.0,0.000221,2]
[364255223,1749049857385,-3000.0,0.0002211,2]
[364255224,1749049857395,-3000.0,0.0002212,2]
[364255225,1749049857406,-3000.0,0.0002213,2]
[364255226,1749049857415,-3000.0,0.0002214,2]
[364255227,1749049857425,-776.5384543,0.00022141,6]
[364255228,1749049857435,-3000.0,0.0002215,2]
[364255229,1749049857445,-3000.0,0.0002216,2]
[364255230,1749049857454,-3000.0,0.0002217,2]
[364255231,1749049857463,-3000.0,0.0002218,2]
[364255232,1749049857472,-3000.0,0.0002219,2]
[364255233,1749049857483,-460.96,0.00022191,2]
[364255234,1749049857494,-728.53,0.00022191,2]
[364255235,1749049857503,-1817.93,0.00022191,2]
[364255236,1749049857513,-954.0,0.00022191,2]
[364255237,1749049857523,-1292.98,0.00022191,2]
[364255238,1749049857534,-580.05,0.00022191,2]
[364255239,1749049857544,-1731.79,0.00022191,2]
[364255240,1749049857553,-2281.41,0.00022191,2]
[364255241,1749049857566,-218.77,0.00022191,2]
[364255242,1749049857576,-732.21,0.00022191,2]
[364255243,1749049857586,-783.41,0.00022191,2]
[364255244,1749049857596,-440.0,0.00022191,2]
[364255245,1749049857607,-1018.43,0.00022191,2]
[364255246,1749049857617,-954.88,0.00022191,2]
[364255247,1749049857631,-588.98,0.00022191,2]
[364255248,1749049857642,-1028.62,0.00022191,2]
[364255249,1749049857652,-973.96,0.00022191,2]
[364255250,1749049857663,-641.5,0.00022191,2]
[364255251,1749049857675,-1725.1,0.00022191,2]
[364255252,1749049857685,-494.08,0.00022191,2]
[364255253,1749049857695,-5000.0,0.00022193,2]
[364255254,1749049857706,-3000.0,0.000222,2]
[364255255,1749049857716,-333.35188082,0.000222,2]
[364255256,1749049857726,-1904.08346948,0.000222,2]
[364255257,1749049857736,-52694.72,0.000222,2]
[364255258,1749049857746,-3000.0,0.0002221,2]
[364255259,1749049857756,-3000.0,0.0002222,2]
[364255260,1749049857766,-3000.0,0.0002223,2]
[364255261,1749049857776,-3000.0,0.0002224,2]
[364255262,1749049857788,-3000.0,0.0002225,2]
[364255263,1749049857798,-3000.0,0.0002226,2]
[364255264,1749049857808,-1500.0,0.0002226,2]
[364255265,1749049857818,-3000.0,0.0002227,2]
[364255266,1749049857828,-3000.0,0.0002228,2]
[364255267,1749049857838,-3000.0,0.0002229,2]
[364255268,1749049857848,-95037.5,0.000223,7]
[364255269,1749049857858,-3000.0,0.000223,2]
[364255270,1749049857867,-3000.0,0.0002231,2]
[364255271,1749049857877,-3000.0,0.0002232,2]
[364255272,1749049857888,-405.0,0.00022321,2]
[364255273,1749049857899,-3000.0,0.0002233,2]
[364255274,1749049857908,-3000.0,0.0002234,2]
[364255275,1749049857918,-3000.0,0.0002235,2]
[364255276,1749049857928,-3000.0,0.0002236,2]
[364255277,1749049857939,-3000.0,0.0002237,2]
[364255278,1749049857949,-3000.0,0.0002238,2]
[364255279,1749049857959,-3000.0,0.0002239,2]
[364255280,1749049857969,-3000.0,0.000224,2]
[364255281,1749049857979,-1904.08346945,0.00022409,2]
[364255282,1749049857990,-3000.0,0.0002241,2]
[364255283,1749049858000,-776.5384543,0.00022417,7]
[364255284,1749049858010,-3000.0,0.0002242,2]
[364255285,1749049858019,-3000.0,0.0002243,2]
[364255286,1749049858028,-4265.700119,0.0002244,2]
[364255287,1749049858039,-504.7392332,0.00022465,2]
[364255288,1749049858049,-460.96,0.00022465,2]
[364255289,1749049858059,-728.53,0.00022465,2]
[364255290,1749049858068,-1817.93,0.00022465,2]
[364255291,1749049858078,-954.0,0.00022465,2]
[364255292,1749049858088,-1292.98,0.00022465,2]
[364255293,1749049858098,-1731.79,0.00022465,2]
[364255294,1749049858108,-2281.41,0.00022465,2]
[364255295,1749049858118,-732.21,0.00022465,2]
[364255296,1749049858127,-783.41,0.00022465,2]
[364255297,1749049858137,-316.42,0.00022465,2]
[364255298,1749049858147,-1018.43,0.00022465,2]
[364255299,1749049858156,-954.88,0.00022465,2]
[364255300,1749049858166,-588.98,0.00022465,2]
[364255301,1749049858175,-1028.62,0.00022465,2]
[364255302,1749049858185,-973.96,0.00022465,2]
[364255303,1749049858194,-641.5,0.00022465,2]
[364255304,1749049858203,-1725.1,0.00022465,2]
[364255305,1749049858213,-494.08,0.00022465,2]
[364255306,1749049858222,-250.0,0.00022466,2]
[364255307,1749049858231,-253.072093,0.00022603,2]
[364255308,1749049858240,-1904.08346945,0.00022617,2]
[364255309,1749049858249,-208.884,0.00022633,2]
[364255310,1749049858258,-250.0,0.00022633,2]
[364255311,1749049858267,-238.354,0.00022633,2]
[364255312,1749049858276,-150.196,0.00022636,2]
[364255313,1749049858286,-257.959,0.00022636,2]
[364255314,1749049858295,-214.651,0.00022636,2]
[364255315,1749049858305,-962.0,0.00022636,2]
[364255316,1749049858313,-2225.0,0.00022636,2]
[364255317,1749049858322,-708.0,0.00022636,2]
[364255318,1749049858331,-776.5384543,0.00022693,7]
[364255319,1749049858340,-461.05,0.00022739,2]
[364255320,1749049858349,-728.55,0.00022739,2]
[364255321,1749049858358,-1817.96,0.00022739,2]
[364255322,1749049858367,-954.0,0.00022739,2]
[364255323,1749049858377,-1293.01,0.00022739,2]
[364255324,1749049858387,-1731.87,0.00022739,2]
[364255325,1749049858396,-2281.4,0.00022739,2]
[364255326,1749049858405,-732.37,0.00022739,2]
[364255327,1749049858415,-783.5,0.00022739,2]
[364255328,1749049858424,-1018.64,0.00022739,2]
[364255329,1749049858434,-955.06,0.00022739,2]
[364255330,1749049858444,-588.98,0.00022739,2]
[364255331,1749049858453,-1028.71,0.00022739,2]
[364255332,1749049858462,-974.14,0.00022739,2]
[364255333,1749049858472,-641.65,0.00022739,2]
[364255334,1749049858482,-1725.27352072,0.00022739,2]
[364255335,1749049858494,-494.23,0.00022739,2]
[364255336,1749049858503,-500.0,0.00022816,2]
[364255337,1749049858512,-207.4,0.00022816,2]
[364255338,1749049858523,-500.0,0.00022816,2]
[364255339,1749049858533,-500.0,0.00022816,2]
[364255340,1749049858542,-500.0,0.00022816,2]
[364255341,1749049858552,-500.0,0.00022816,2]
[364255342,1749049858563,-500.0,0.00022816,2]
[364255343,1749049858573,-5000.0,0.00022816,2]
[364255344,1749049858583,-500.0,0.00022816,2]
[364255345,1749049858592,-500.0,0.00022816,2]
[364255346,1749049858676,-500.0,0.00022816,2]
[364255347,1749049858686,-500.0,0.00022816,2]
[364255348,1749049858696,-500.0,0.00022816,2]
[364255349,1749049858707,-500.0,0.00022816,2]
[364255350,1749049858718,-500.0,0.00022816,2]
[364255351,1749049858728,-480.50982076,0.00022816,2]
[364255352,1749049858739,-500.0,0.00022816,2]
[364255353,1749049858749,-500.0,0.00022816,2]
[364255354,1749049858758,-1904.08346945,0.00022826,2]
[364255355,1749049858769,-696.81127266,0.000229,2]
[364255356,1749049858779,-776.5384543,0.00022969,8]
[364255357,1749049858791,-151.0,0.00023,7]
[364255358,1749049858800,-151.0,0.00023,7]
[364255359,1749049858810,-1000.0,0.00023,23]
[364255360,1749049858821,-350.0,0.00023014,2]
[364255361,1749049858832,-1904.08346945,0.00023034,2]
[364255362,1749049858842,-1904.08346945,0.00023243,2]
[364255363,1749049858851,-776.5384543,0.00023245,8]
[364255364,1749049858862,-1500.0,0.00023356,2]
[364255365,1749049858871,-5000.0,0.00023364,2]
[364255366,1749049858881,-151.0,0.0002337,2]
[364255367,1749049858890,-1850.19,0.000234,7]
[364255368,1749049858901,-996.0,0.00023432,2]
[364255369,1749049858911,-1904.08346945,0.00023451,2]
[364255370,1749049858921,-421.17543885,0.00023562,2]
[364255371,1749049858930,-1904.08346945,0.0002366,2]
[364255372,1749049858940,-2000.0,0.000237,2]
[364255373,1749049858950,-52694.72,0.000237,2]
[364255374,1749049858959,-816.129094,0.00023734,3]
[364255375,1749049858969,-1904.08346945,0.00023868,2]
[364255376,1749049858979,-5000.0,0.00023912,2]
[364255377,1749049858990,-95037.5,0.00024,7]
[364255378,1749049859000,-500.0,0.00024,2]
[364255379,1749049859009,-500.0,0.00024,2]
[364255380,1749049859019,-1000.0,0.00024,24]
[364255381,1749049859028,-160.0,0.00024,7]
[364255382,1749049859039,-1904.08346945,0.00024077,2]
[364255383,1749049859048,-2000.0,0.000241,2]
[364255384,1749049859058,-2000.0,0.000241,2]
[364255385,1749049859067,-2000.0,0.000241,2]
[364255386,1749049859077,-157.20561442,0.00024107,2]
[364255387,1749049859199,-238.47966885,0.00024137,2]
[364255388,1749049859208,-161.5753872,0.00024164,2]
[364255389,1749049859218,-311.5050251,0.00024164,2]
[364255390,1749049859227,-935.0860655,0.00024164,2]
[364255391,1749049859236,-158.575084,0.00024164,2]
[364255392,1749049859245,-306.0,0.00024164,2]
[364255393,1749049859255,-158.575084,0.00024164,2]
[364255394,1749049859264,-158.575084,0.00024164,2]
[364255395,1749049859273,-158.575084,0.00024164,2]
[364255396,1749049859282,-158.575084,0.00024164,2]
[364255397,1749049859292,-157.6149197,0.00024164,2]
[364255398,1749049859302,-364.5816698,0.00024164,2]
[364255399,1749049859312,-1145.005776,0.00024164,2]
[364255400,1749049859321,-174.9723149,0.00024164,2]
[364255401,1749049859330,-364.5816698,0.00024164,2]
[364255402,1749049859340,-153.0,0.00024164,2]
[364255403,1749049859350,-286.6964919,0.00024164,2]
[364255404,1749049859360,-153.0,0.00024164,2]
[364255405,1749049859369,-153.0,0.00024164,2]
[364255406,1749049859379,-153.0,0.00024164,2]
[364255407,1749049859389,-257.39280815,0.00024173,2]
[364255408,1749049859399,-151.0,0.00024177,7]
[364255409,1749049859409,-151.0,0.00024177,7]
[364255410,1749049859419,-151.0,0.00024177,7]
[364255411,1749049859428,-151.0,0.00024177,7]
[364255412,1749049859438,-151.0,0.00024177,7]
[364255413,1749049859448,-151.0,0.00024177,7]
[364255414,1749049859472,-151.0,0.00024177,7]
[364255415,1749049859487,-151.0,0.00024177,7]
[364255416,1749049859498,-151.0,0.00024177,7]
[364255417,1749049859509,-151.0,0.00024177,7]
[364255418,1749049859519,-292.6608,0.00024177,7]
[364255419,1749049859529,-151.0,0.00024177,7]
[364255420,1749049859542,-151.0,0.00024177,7]
[364255421,1749049859552,-151.0,0.00024177,7]
[364255422,1749049859565,-151.0,0.00024177,7]
[364255423,1749049859575,-234.299654,0.00024177,7]
[364255424,1749049859584,-158.26813,0.00024177,7]
[364255425,1749049859594,-151.0,0.00024177,7]
[364255426,1749049859604,-151.0,0.00024177,7]
[364255427,1749049859614,-151.0,0.00024177,7]
[364255428,1749049859624,-250.743619,0.00024177,7]
[364255429,1749049859634,-250.743619,0.00024177,7]
[364255430,1749049859643,-250.743619,0.00024177,7]
[364255431,1749049859653,-250.743619,0.00024177,7]
[364255432,1749049859663,-250.743619,0.00024177,7]
[364255433,1749049859673,-250.743619,0.00024177,7]
[364255434,1749049859683,-250.743619,0.00024177,7]
[364255435,1749049859693,-250.743619,0.00024177,7]
[364255436,1749049859703,-250.743619,0.00024177,7]
[364255437,1749049859713,-250.743619,0.00024177,7]
[364255438,1749049859724,-250.743619,0.00024177,7]
[364255439,1749049859733,-250.743619,0.00024177,7]
[364255440,1749049859743,-250.743619,0.00024177,7]
[364255441,1749049859753,-250.743619,0.00024177,7]
[364255442,1749049859763,-250.743619,0.00024177,7]
[364255443,1749049859773,-250.743619,0.00024177,7]
[364255444,1749049859785,-250.743619,0.00024177,7]
[364255445,1749049859795,-250.743619,0.00024177,7]
[364255446,1749049859805,-250.743619,0.00024177,7]
[364255447,1749049859815,-250.743617,0.00024177,7]
[364255448,1749049859824,-151.0,0.00024177,7]
[364255449,1749049859834,-151.0,0.00024177,7]
[364255450,1749049859843,-151.0,0.00024177,7]
[364255451,1749049859853,-151.0,0.00024177,7]
[364255452,1749049859862,-151.0,0.00024177,7]
[364255453,1749049859871,-151.0,0.00024177,7]
[364255454,1749049859881,-151.0,0.00024177,7]
[364255455,1749049859891,-151.0,0.00024177,7]
[364255456,1749049859903,-151.0,0.00024177,7]
[364255457,1749049859912,-151.747389,0.00024177,7]
[364255458,1749049859924,-151.0,0.00024177,7]
[364255459,1749049859934,-151.0,0.00024177,7]
[364255460,1749049859943,-155.913432,0.00024177,7]
[364255461,1749049859953,-151.0,0.00024177,7]
[364255462,1749049859962,-151.0,0.00024177,7]
[364255463,1749049859972,-151.0,0.00024177,7]
[364255464,1749049859981,-152.985598,0.00024177,7]
[364255465,1749049859991,-151.0,0.00024177,7]
[364255466,1749049860001,-151.0,0.00024177,7]
[364255467,1749049860010,-151.0,0.00024177,7]
[364255468,1749049860020,-151.0,0.00024177,7]
[364255469,1749049860029,-151.0,0.00024177,7]
[364255470,1749049860040,-151.0,0.00024177,7]
[364255471,1749049860050,-151.0,0.00024177,7]
[364255472,1749049860060,-151.0,0.00024177,7]
[364255473,1749049860071,-151.0,0.00024177,7]
[364255474,1749049860081,-151.0,0.00024177,7]
[364255475,1749049860090,-151.0,0.00024177,7]
[364255476,1749049860100,-151.0,0.00024177,7]
[364255477,1749049860109,-151.0,0.00024177,7]
[364255478,1749049860118,-151.0,0.00024177,7]
[364255479,1749049860128,-151.0,0.00024177,7]
[364255480,1749049860245,-151.0,0.00024177,7]
[364255481,1749049860252,-151.0,0.00024177,7]
[364255482,1749049860260,-151.0,0.00024177,7]